[Event "WYCC 2018 O16"]
[Site "Halkidiki"]
[Date "2018.10.23"]
[Round "5"]
[White "Teclaf, Pawel"]
[Black "Mukhutdinov, Tigran"]
[Result "1-0"]
[ECO "B32"]
[WhiteElo "2384"]
[BlackElo "2256"]
[Annotator "NA"]
[PlyCount "105"]
[EventDate "2018.10.20"]
[EventType "swiss"]
[EventCountry "GRE"]
[SourceTitle "playchess.com"]
[Source "ChessBase"]
[SourceQuality "1"]
[TimeControl "40/5400+30:1800+30"]

1. e4 {[%emt 0:00:00]} c5 {[%emt 0:00:00]} 2. Nf3 {[%emt 0:00:00]} Nc6 {[%emt 0:00:00]} 3. d4 {[%emt 0:00:00]} cxd4 {[%emt 0:00:03]} 4. Nxd4 {[%emt 0:00:00]} e5 {[%emt 0:00:27]} 5. Nb5 {[%emt 0:00:19]} a6 {[%emt 0:01:16]} 6. Nd6+ {[%emt 0:00:14]} Bxd6 {[%emt 0:00:05]} 7. Qxd6 {[%emt 0:00:03]} Qe7 {[%emt 0:00:05]} 8. Qd1 {[%emt 0:04:30]} Nf6 {[%emt 0:00:37]} 9. Nc3 {[%emt 0:01:42]} d6 {[%emt 0:00:25]} 10. Bg5 {[%emt 0:04:27] B32: Sicilian: Löwenthal and Kalashnikov Variations} Be6 {[%emt 0:01:12]} 11. Nd5 {[%emt 0:02:07]} Bxd5 {[%emt 0:00:06]} 12. exd5 {[%emt 0:00:41]} Nb8 {[%emt 0:00:24]} 13. a4 {[%emt 0:09:11] LiveBook: 7 Games} (13. Qf3 Nbd7 14. O-O-O h6 15. Be3 h5 16. h3 O-O-O 17. Ba7 Nc5 {1-0 (80) Yu,Y (2759)-Li,C (2725) Ningbo 2018}) 13... Nbd7 {[%emt 0:04:47]} 14. a5 {[%emt 0:11:38] [#]} e4 $146 {[%emt 0:11:17]} ({Predecessor:} 14... h6 15. Be3 O-O 16. Be2 Nh7 17. O-O f5 18. f3 Ng5 19. Bf2 {½-½ (19) Vasiesiu,D (2376)-Pavlov,S (2502) Corund 2017}) 15. Qd4 {[%emt 0:05:03]} Rc8 {[%emt 0:03:00]} 16. c4 {[%emt 0:10:54]} h6 {[%emt 0:14:03]} 17. Be3 {[%emt 0:03:47]} O-O {[%emt 0:01:19]} 18. Be2 {[%emt 0:01:27]} Nh7 {[%emt 0:01:06]} 19. O-O {[%emt 0:11:43]} f5 {[%emt 0:00:38]} 20. Bf4 {[%emt 0:02:36]} Nhf6 {[%emt 0:05:07]} 21. b4 {[%emt 0:05:49]} g5 {[%emt 0:12:36]} 22. Bd2 {[%emt 0:00:09]} Ne5 {[%emt 0:02:17]} 23. Rac1 {[%emt 0:07:08]} f4 {[%emt 0:02:34]} 24. f3 e3 {[%emt 0:06:24]} 25. Bc3 {[%emt 0:01:16]} Nfd7 {[%emt 0:02:56]} 26. Bb2 {[%emt 0:02:56]} Rfe8 {[%emt 0:05:09]} 27. c5 {[%emt 0:00:40]} Rc7 {[%emt 0:05:20]} 28. cxd6 {[%emt 0:03:18]} Qxd6 {[%emt 0:00:00]} 29. Rxc7 {[%emt 0:02:20]} Qxc7 30. d6 Qc2 {[%emt 0:01:41]} 31. Re1 {[%emt 0:03:28]} Qd2 {[%emt 0:01:38]} 32. Qxd2 exd2 {[%emt 0:00:06]} 33. Rd1 {[%emt 0:00:27]} Nd3 {[%emt 0:02:48]} 34. Rxd2 {[%emt 0:00:10]} Nxb4 {[%emt 0:00:03]} 35. Bc3 {[%emt 0:01:43]} Nc6 {[%emt 0:01:11]} 36. Bc4+ {[%emt 0:01:48]} Kf8 {[%emt 0:00:46]} 37. Rd5 {[%emt 0:01:22]} Nce5 {[%emt 0:02:18]} 38. Bb3 {[%emt 0:01:21]} Re6 {[%emt 0:01:33]} 39. Kf1 {[%emt 0:01:06]} h5 {[%emt 0:04:12]} 40. h4 {[%emt 0:00:00]} g4 {[%emt 0:00:00]} 41. Rd4 {[%emt 0:02:48]} Rf6 {[%emt 0:08:20]} 42. Re4 {[%emt 0:00:21]} gxf3 {[%emt 0:00:31]} 43. Bxe5 {[%emt 0:02:57]} fxg2+ {[%emt 0:00:42]} 44. Kxg2 {[%emt 0:01:12]} Nxe5 $18 {[%emt 0:00:11]} 45. Rxe5 {[%emt 0:00:08]} Rxd6 {[%emt 0:00:02]} 46. Rf5+ {[%emt 0:07:07]} Ke8 {[%emt 0:01:00]} 47. Rxh5 {[%emt 0:03:26]} b6 {[%emt 0:00:11]} 48. Rh8+ {[%emt 0:01:31]} Ke7 {[%emt 0:00:21]} 49. Rh7+ {[%emt 0:00:05]} Ke8 {[%emt 0:00:35]} 50. h5 {[%emt 0:02:17]} bxa5 {[%emt 0:02:23]} 51. h6 {[%emt 0:01:41]} a4 {[%emt 0:00:53]} 52. Bxa4+ {[%emt 0:01:01]} Kf8 {[%emt 0:00:04]} 53. Bb3 {[%emt 0:00:38]} 1-0

[Event "WYCC 2018 O16"]
[Site "Halkidiki"]
[Date "2018.10.23"]
[Round "5"]
[White "Lianes Garcia, Marcos"]
[Black "Kamer, Kayra"]
[Result "1/2-1/2"]
[ECO "E73"]
[WhiteElo "2376"]
[BlackElo "2290"]
[Annotator "NA"]
[PlyCount "98"]
[EventDate "2018.10.20"]
[EventType "swiss"]
[EventCountry "GRE"]
[SourceTitle "playchess.com"]
[Source "ChessBase"]
[SourceQuality "1"]
[TimeControl "40/5400+30:1800+30"]

1. d4 {[%emt 0:00:00]} Nf6 {[%emt 0:00:00]} 2. c4 {[%emt 0:00:29]} g6 {[%emt 0:00:00]} 3. Nc3 {[%emt 0:00:34]} Bg7 {[%emt 0:00:00]} 4. e4 {[%emt 0:00:50]} d6 {[%emt 0:00:00]} 5. Be2 {[%emt 0:00:39]} O-O {[%emt 0:00:13]} 6. Be3 {[%emt 0:00:50]} e5 {[%emt 0:02:43]} 7. d5 {[%emt 0:02:16]} a5 {[%emt 0:02:03]} 8. g4 {[%emt 0:00:35]} Na6 {[%emt 0:00:44] E73: King's Indian: Averbakh Variation without 6...c5} 9. h4 {[%emt 0:01:30]} Nd7 {[%emt 0:01:08] LiveBook: 3 Games} (9... Nc5 10. f3 h5 11. g5 Nh7 12. Kd2 Bd7 13. Nh3 c6 14. Nf2 cxd5 15. exd5 f5 16. gxf6 Nxf6 17. Bxc5 dxc5 {0-1 (37) Vallejo Pons,F (2705)-Radjabov,T (2741) Palma de Mallorca 2017}) 10. Qd2 {[%emt 0:03:02]} Ndc5 {[%emt 0:00:39]} 11. h5 {[%emt 0:06:10]} Qe7 {[%emt 0:09:29]} 12. f3 $146 {[%emt 0:16:45]} ({Predecessor:} 12. Nh3 f6 {1-0 (30) Andonov,B (2326)-Piscitelli,V (2003) Porto San Giorgio 2008}) 12... Bd7 {[%emt 0:07:55]} 13. Nh3 {[%emt 0:05:53]} Nb4 {[%emt 0:18:07]} 14. Nf2 {[%emt 0:13:14]} b6 {[%emt 0:01:17]} 15. Kf1 {[%emt 0:03:08]} f5 {[%emt 0:04:46]} 16. h6 {[%emt 0:04:13]} Bf6 {[%emt 0:01:20]} 17. g5 {[%emt 0:02:22]} Bh8 {[%emt 0:01:29]} 18. Rg1 {[%emt 0:16:30]} Nb7 {[%emt 0:00:28]} 19. exf5 {[%emt 0:08:12]} gxf5 {[%emt 0:00:02]} 20. f4 {[%emt 0:00:56]} Be8 {[%emt 0:00:30]} 21. a3 {[%emt 0:02:51]} Na6 {[%emt 0:00:02]} 22. b4 {[%emt 0:00:21]} Bg6 {[%emt 0:00:04]} 23. Rb1 {[%emt 0:00:40]} Nb8 {[%emt 0:04:14]} 24. c5 {[%emt 0:04:51]} axb4 {[%emt 0:03:04]} 25. cxd6 {[%emt 0:00:16]} Nxd6 {[%emt 0:00:38]} 26. axb4 {[%emt 0:00:08]} Nd7 {[%emt 0:01:02]} 27. Nb5 {[%emt 0:00:37]} exf4 {[%emt 0:01:59]} 28. Bxf4 {[%emt 0:00:10]} Ne4 {[%emt 0:02:46]} 29. Qe3 {[%emt 0:02:20]} Be5 {[%emt 0:02:53]} 30. Nd3 {[%emt 0:01:15]} Rfe8 {[%emt 0:14:54]} 31. Nxe5 {[%emt 0:00:20]} Nxe5 {[%emt 0:00:11]} 32. Qd4 {[%emt 0:00:46]} Ra2 {[%emt 0:02:12]} 33. Rb2 {[%emt 0:00:35]} Ra1+ {[%emt 0:06:49]} 34. Kg2 {[%emt 0:00:05]} Rxg1+ {[%emt 0:00:04]} 35. Kxg1 {[%emt 0:00:05]} Nxg5 {[%emt 0:03:42]} 36. Bxe5 {[%emt 0:00:47]} Qxe5 {[%emt 0:00:14]} 37. Qxe5 {[%emt 0:00:10]} Rxe5 {[%emt 0:00:02]} 38. Nxc7 {[%emt 0:00:18]} Nf7 {[%emt 0:02:42]} 39. Rd2 {[%emt 0:01:53]} Nd6 {[%emt 0:01:45]} 40. Nb5 {[%emt 0:00:00]} Nxb5 {[%emt 0:00:00]} 41. Bxb5 {[%emt 0:00:40]} Be8 {[%emt 0:02:46]} 42. Bc6 $18 {[%emt 0:08:29]} b5 {[%emt 0:01:01]} 43. Bxe8 {[%emt 0:18:46]} Rxe8 {[%emt 0:00:03]} 44. d6 {[%emt 0:00:31]} Kf7 {[%emt 0:01:03]} 45. Kf2 {[%emt 0:00:52]} Ke6 {[%emt 0:01:04]} 46. Kf3 {[%emt 0:01:23]} Rd8 {[%emt 0:01:04]} 47. Re2+ {[%emt 0:01:03]} Kf6 {[%emt 0:01:41]} 48. Rd2 {[%emt 0:00:44]} Ke6 {[%emt 0:00:04]} 49. Re2+ {[%emt 0:00:13]} Kf6 {[%emt 0:00:06] Ke4 Ke5+} 1/2-1/2

[Event "WYCC 2018 O16"]
[Site "Halkidiki"]
[Date "2018.10.23"]
[Round "5"]
[White "Schitco, Ivan"]
[Black "Petriashvili, Nikoloz"]
[Result "1/2-1/2"]
[ECO "D10"]
[WhiteElo "2376"]
[BlackElo "2343"]
[Annotator "NA"]
[PlyCount "92"]
[EventDate "2018.10.20"]
[EventType "swiss"]
[EventCountry "GRE"]
[SourceTitle "playchess.com"]
[Source "ChessBase"]
[SourceQuality "1"]
[TimeControl "40/5400+30:1800+30"]

1. d4 d5 2. c4 c6 3. cxd5 cxd5 4. Bf4 Nc6 5. e3 Nf6 6. Nc3 a6 7. Bd3 Bg4 8. Nge2 e6 9. Rc1 Bd6 10. f3 {LiveBook: 48 Games} Bh5 11. Na4 Bg6 12. Bxd6 Qxd6 13. O-O Nd7 14. Nc5 Nxc5 $11 15. Rxc5 Ne5 16. Qa4+ Ke7 17. Bxg6 hxg6 18. Qa3 Nd7 19. Rc7 Qxa3 20. bxa3 Rhb8 21. Rfc1 Kd8 22. e4 Rc8 23. Rxb7 Rxc1+ 24. Nxc1 Rc8 25. Nd3 Rc3 26. Rb3 Rc4 27. exd5 exd5 28. Nb4 a5 29. Nxd5 Rxd4 30. Ne3 Kc7 31. Kf1 Ne5 32. Ke2 Kd6 33. Nc2 Rh4 34. h3 g5 35. Rb5 Ra4 36. Kd2 f6 37. Rb7 g6 38. Rb6+ Nc6 39. Kc3 Kc5 40. Rb7 Rc4+ 41. Kd2 Ne5 42. Rb8 Ra4 43. Rc8+ Kd5 44. Ra8 f5 45. Kc3 Rc4+ 46. Kd2 Ra4 1/2-1/2

[Event "WYCC 2018 O16"]
[Site "Halkidiki"]
[Date "2018.10.23"]
[Round "5"]
[White "Davtyan, Artur"]
[Black "Quirhuayo Chumbe, German Gonzalo"]
[Result "1-0"]
[ECO "E10"]
[WhiteElo "2374"]
[BlackElo "2220"]
[Annotator "NA"]
[PlyCount "59"]
[EventDate "2018.10.20"]
[EventType "swiss"]
[EventCountry "GRE"]
[SourceTitle "playchess.com"]
[Source "ChessBase"]
[SourceQuality "1"]
[TimeControl "40/5400+30:1800+30"]

1. d4 {[%emt 0:00:00]} Nf6 {[%emt 0:00:00]} 2. c4 {[%emt 0:00:47]} e6 {[%emt 0:00:00]} 3. Nf3 {[%emt 0:00:11]} c5 {[%emt 0:00:00]} 4. d5 {[%emt 0:00:07]} b5 {[%emt 0:00:00]} 5. dxe6 {[%emt 0:00:07]} fxe6 {[%emt 0:00:07]} 6. Nc3 {[%emt 0:00:02] E10: Blumenfeld Gambit} (6. cxb5 a6 7. bxa6 Bxa6 8. g3 Nc6 9. Bg2 Be7 10. O-O O-O 11. Nc3 Qe8 12. Re1 d5 13. Bh3 Bd8 14. Ng5 {0-1 (26) Inarkiev,E (2689)-Tregubov,P (2575) Riadh 2017}) 6... bxc4 {[%emt 0:00:11]} 7. e4 {[%emt 0:00:49]} d5 {[%emt 0:00:08]} 8. Bg5 {[%emt 0:01:41]} Bb7 {[%emt 0:00:10]} 9. Qe2 {[%emt 0:03:02]} d4 {[%emt 0:00:10]} 10. e5 {[%emt 0:00:52]} Nbd7 $146 {[%emt 0:00:13]} ({Predecessor:} 10... d3 11. Qd1 h6 12. Bh4 g5 13. exf6 gxh4 14. Ne5 Qxf6 15. Qh5+ Ke7 16. Ng6+ Kd7 17. Ne5+ Ke7 18. Ng6+ Kd7 19. Ne5+ {½-½ (19) Davtyan,A (2351)-Lomasov,S (2551) Batumi 2018}) 11. exf6 {[%emt 0:24:42]} gxf6 {[%emt 0:00:07]} 12. Qxe6+ {[%emt 0:02:32]} Qe7 {[%emt 0:00:03]} 13. Qxe7+ {[%emt 0:00:24]} Bxe7 {[%emt 0:00:07]} 14. Bd2 {[%emt 0:06:37]} dxc3 {[%emt 0:00:09]} 15. Bxc3 {[%emt 0:00:15]} Rg8 {[%emt 0:02:08]} 16. Nd2 {[%emt 0:11:49]} Nb6 {[%emt 0:16:25]} 17. f3 {[%emt 0:02:06]} f5 {[%emt 0:03:02]} 18. Kf2 {[%emt 0:00:49]} f4 {[%emt 0:00:31]} 19. Re1 {[%emt 0:01:54]} Kf7 {[%emt 0:10:35]} 20. g3 {[%emt 0:03:34]} Bd5 {[%emt 0:06:05]} 21. Re5 {[%emt 0:01:37]} Bd6 $18 {[%emt 0:33:50]} 22. Rf5+ {[%emt 0:08:40]} Ke7 {[%emt 0:01:31]} 23. g4 {[%emt 0:05:11]} Kd7 {[%emt 0:05:44]} 24. Be2 {[%emt 0:04:31]} Kc6 {[%emt 0:01:49]} 25. Rd1 {[%emt 0:00:06]} Rae8 {[%emt 0:05:27]} 26. Ne4 {[%emt 0:00:37]} Bxe4 {[%emt 0:03:25]} 27. fxe4 {[%emt 0:00:21]} Bb8 {[%emt 0:00:21]} 28. Rf6+ {[%emt 0:05:41]} Kb5 {[%emt 0:07:05]} 29. b3 {[%emt 0:00:31]} Rgf8 {[%emt 0:02:34]} 30. Bxc4+ {[%emt 0:00:09]} 1-0

[Event "WYCC 2018 O16"]
[Site "Halkidiki"]
[Date "2018.10.23"]
[Round "5"]
[White "Shubin, Kirill"]
[Black "Talukdar, Rohan"]
[Result "0-1"]
[ECO "B53"]
[WhiteElo "2369"]
[BlackElo "2279"]
[Annotator "NA"]
[PlyCount "82"]
[EventDate "2018.10.20"]
[EventType "swiss"]
[EventCountry "GRE"]
[SourceTitle "playchess.com"]
[Source "ChessBase"]
[SourceQuality "1"]
[TimeControl "40/5400+30:1800+30"]

1. e4 {[%emt 0:00:00]} c5 {[%emt 0:00:00]} 2. Nf3 {[%emt 0:00:00]} d6 {[%emt 0:00:00]} 3. d4 {[%emt 0:00:00]} cxd4 {[%emt 0:00:00]} 4. Qxd4 {[%emt 0:00:00]} Nc6 {[%emt 0:00:55]} 5. Bb5 {[%emt 0:00:38]} Bd7 {[%emt 0:00:06]} 6. Qd3 {[%emt 0:00:04]} g6 {[%emt 0:09:25]} 7. c4 {[%emt 0:00:06] B53: Sicilian: 2...d6: Lines with Qxd4} Bg7 {[%emt 0:00:53]} 8. Nc3 {[%emt 0:00:05]} Nf6 {[%emt 0:02:10]} 9. h3 {[%emt 0:00:03]} O-O {[%emt 0:01:17]} 10. O-O {[%emt 0:02:13]} a6 {[%emt 0:04:48]} (10... Rc8 11. Be3 Nb4 12. Qe2 a6 13. Bxd7 Nxd7 14. Rac1 Bxc3 15. Rxc3 Nxa2 {½-½ (28) Malakhov,V (2691)-Safarli,E (2657) Brest 2018}) 11. Bxc6 {[%emt 0:00:06]} Bxc6 {[%emt 0:00:24] LiveBook: 88 Games} 12. Nd4 {[%emt 0:00:08]} Nd7 {[%emt 0:04:13]} 13. Be3 {[%emt 0:01:56]} Rc8 {[%emt 0:01:56]} 14. Rac1 {[%emt 0:00:10]} Qa5 {[%emt 0:04:44] [#]} 15. Qb1 $146 {[%emt 0:09:40]} Qh5 {[%emt 0:01:56]} 16. b4 {[%emt 0:01:59]} Nf6 {[%emt 0:06:24]} 17. Qd3 {[%emt 0:06:09]} Bd7 {[%emt 0:07:04]} 18. Nce2 {[%emt 0:00:19]} Bc6 {[%emt 0:15:43]} 19. Nxc6 {[%emt 0:08:34]} Rxc6 {[%emt 0:00:36]} 20. Nd4 {[%emt 0:01:39]} Rc7 {[%emt 0:00:44]} 21. f4 {[%emt 0:00:56]} e5 {[%emt 0:05:57]} 22. Nb3 {[%emt 0:02:30]} Re8 {[%emt 0:07:37]} 23. Nd2 {[%emt 0:02:58]} Rd7 {[%emt 0:09:06]} 24. Rf3 {[%emt 0:02:36]} exf4 {[%emt 0:03:03]} 25. Bxf4 {[%emt 0:00:10]} b5 {[%emt 0:00:33]} 26. Bxd6 {[%emt 0:03:53]} bxc4 {[%emt 0:00:21]} 27. Rxc4 {[%emt 0:00:09]} Qb5 {[%emt 0:05:12]} 28. Rd4 {[%emt 0:06:39]} Red8 {[%emt 0:00:11]} 29. Nc4 {[%emt 0:01:39]} Ne8 {[%emt 0:02:03]} 30. Rd5 {[%emt 0:01:36]} Nxd6 {[%emt 0:00:34]} 31. Rxb5 {[%emt 0:00:41]} Nxb5 {[%emt 0:00:01]} 32. Qb3 $19 {[%emt 0:01:08]} Nd4 {[%emt 0:00:02]} 33. Qa4 {[%emt 0:00:35]} Nxf3+ {[%emt 0:01:40]} 34. gxf3 {[%emt 0:00:04]} h5 {[%emt 0:03:05]} 35. Qxa6 {[%emt 0:00:39]} Ra7 {[%emt 0:00:17]} 36. Qc6 {[%emt 0:00:52]} Rxa2 {[%emt 0:00:26]} 37. Nd6 {[%emt 0:01:50]} Rd2 {[%emt 0:01:22]} 38. Nb7 {[%emt 0:00:42]} Rd1+ {[%emt 0:01:35]} 39. Kf2 {[%emt 0:00:17]} R8d2+ {[%emt 0:00:25]} 40. Kg3 {[%emt 0:00:00]} Be5+ {[%emt 0:00:00]} 41. Kh4 {[%emt 0:01:51]} Kg7 {[%emt 0:04:08]} 0-1

[Event "WYCC 2018 O16"]
[Site "Halkidiki"]
[Date "2018.10.23"]
[Round "5"]
[White "Abdisalimov, Abdimalik"]
[Black "Kosakowski, Jakub"]
[Result "1/2-1/2"]
[ECO "A00"]
[WhiteElo "2368"]
[BlackElo "2413"]
[Annotator "NA"]
[PlyCount "120"]
[EventDate "2018.10.20"]
[EventType "swiss"]
[EventCountry "GRE"]
[SourceTitle "playchess.com"]
[Source "ChessBase"]
[SourceQuality "1"]
[TimeControl "40/5400+30:1800+30"]

1. g3 {[%emt 0:00:12]} Nf6 {[%emt 0:01:08]} 2. Bg2 {[%emt 0:00:06]} d5 {[%emt 0:00:45]} 3. c4 {[%emt 0:00:05]} g6 {[%emt 0:01:10]} 4. Qa4+ {[%emt 0:00:13]} Bd7 {[%emt 0:10:01]} 5. Qb3 {[%emt 0:04:41]} Bc6 {[%emt 0:00:09]} 6. Nf3 {[%emt 0:00:04]} dxc4 {[%emt 0:11:19]} 7. Qxc4 {[%emt 0:00:07]} Bg7 {[%emt 0:01:17]} 8. O-O {[%emt 0:04:09]} O-O {[%emt 0:00:08]} 9. Nc3 {[%emt 0:03:02]} a6 {[%emt 0:02:25]} 10. d3 {[%emt 0:02:45]} Nbd7 {[%emt 0:15:30]} 11. Qh4 {[%emt 0:04:27]} Bxf3 {[%emt 0:03:06]} 12. Bxf3 {[%emt 0:00:11]} c6 {[%emt 0:00:07]} 13. Rd1 {[%emt 0:00:52]} Qb6 {[%emt 0:04:30]} 14. Rb1 {[%emt 0:02:18]} Rad8 {[%emt 0:00:19]} 15. Be3 {[%emt 0:00:28]} Qc7 {[%emt 0:00:42]} 16. Bf4 {[%emt 0:07:55]} Ne5 {[%emt 0:11:27]} 17. Bxc6 $2 {[%emt 0:04:11]} ({White should try} 17. Bg2 $16) 17... bxc6 {[%emt 0:01:33]} 18. d4 {[%emt 0:00:06]} Nd5 {[%emt 0:00:50]} 19. dxe5 {[%emt 0:08:25]} Nxc3 {[%emt 0:02:31]} 20. bxc3 {[%emt 0:00:10]} Bxe5 {[%emt 0:00:59]} 21. Bxe5 {[%emt 0:03:28]} Qxe5 {[%emt 0:00:17]} 22. Qc4 {[%emt 0:00:08]} a5 {[%emt 0:03:52]} 23. Rd4 {[%emt 0:03:29]} Rd5 {[%emt 0:02:20]} 24. Rb6 {[%emt 0:01:47]} Rc8 {[%emt 0:14:27]} 25. Rxc6 {[%emt 0:01:43]} Rxc6 {[%emt 0:00:07]} 26. Qxd5 {[%emt 0:01:36]} Qxd5 {[%emt 0:01:06]} 27. Rxd5 {[%emt 0:00:14]} Rxc3 {[%emt 0:00:31]} 28. Rxa5 {[%emt 0:00:01]} Rc2 {[%emt 0:00:23]} 29. e3 {[%emt 0:00:08]} Kg7 {[%emt 0:00:07]} 30. Kg2 {[%emt 0:01:15]} Rb2 {[%emt 0:00:23]} 31. g4 {[%emt 0:00:35]} Rc2 {[%emt 0:01:08]} 32. h4 {[%emt 0:00:11]} h6 {[%emt 0:01:53]} 33. a4 {[%emt 0:01:54]} Rc4 {[%emt 0:01:06]} 34. Kg3 {[%emt 0:00:30]} h5 {[%emt 0:00:26]} 35. f3 {[%emt 0:02:31]} hxg4 {[%emt 0:00:44]} 36. fxg4 {[%emt 0:00:30]} f5 {[%emt 0:00:11]} 37. gxf5 {[%emt 0:01:29]} gxf5 {[%emt 0:00:27]} 38. Rxf5 {[%emt 0:00:35]} Rxa4 {[%emt 0:00:08]} 39. Rg5+ {[%emt 0:00:07]} Kf6 {[%emt 0:00:29]} 40. Rg4 {[%emt 0:00:00]} Ra3 {[%emt 0:00:00]} 41. Rf4+ {[%emt 0:00:27]} Kg6 {[%emt 0:01:33]} 42. Kf3 {[%emt 0:00:02]} Ra1 {[%emt 0:00:26]} 43. Ke4 {[%emt 0:00:30]} Ra5 {[%emt 0:03:25]} 44. Kd3 {[%emt 0:08:08]} Ra3+ {[%emt 0:01:18]} 45. Ke2 {[%emt 0:00:01]} Rb3 {[%emt 0:02:28]} 46. Kf3 {[%emt 0:00:33]} Ra3 {[%emt 0:00:51]} 47. Rg4+ {[%emt 0:00:33]} Kf6 {[%emt 0:01:15]} 48. Rg1 {[%emt 0:01:17]} Ra4 {[%emt 0:02:05]} 49. Rg4 {[%emt 0:01:17]} Ra3 {[%emt 0:00:08]} 50. Rb4 {[%emt 0:00:00]} Ra1 {[%emt 0:01:28]} 51. Ke4 {[%emt 0:00:47]} Ra5 {[%emt 0:02:21]} 52. Kf4 $14 {[%emt 0:00:54]} Ra1 {[%emt 0:02:08]} 53. Rb6+ {[%emt 0:00:11]} e6 {[%emt 0:00:28]} 54. Rb4 {[%emt 0:00:48]} Rh1 {[%emt 0:01:15]} 55. Kg3 {[%emt 0:00:12]} Re1 {[%emt 0:00:23]} 56. Rf4+ {[%emt 0:00:10]} Kg6 {[%emt 0:00:41]} 57. Kf3 {[%emt 0:00:14]} Ra1 {[%emt 0:00:41]} 58. Ke4 {[%emt 0:02:55]} Ra5 {[%emt 0:00:08]} 59. Rf3 {[%emt 0:01:32]} Ra4+ {[%emt 0:08:16]} 60. Ke5 {[%emt 0:01:34]} Rxh4 {[%emt 0:00:07]} 1/2-1/2

[Event "WYCC 2018 O16"]
[Site "Halkidiki"]
[Date "2018.10.23"]
[Round "5"]
[White "Kalavannan, Koby"]
[Black "Petkov, Matey"]
[Result "1-0"]
[ECO "A06"]
[WhiteElo "2365"]
[BlackElo "2164"]
[Annotator "NA"]
[PlyCount "99"]
[EventDate "2018.10.20"]
[EventType "swiss"]
[EventCountry "GRE"]
[SourceTitle "playchess.com"]
[Source "ChessBase"]
[SourceQuality "1"]
[TimeControl "40/5400+30:1800+30"]

1. Nf3 {[%emt 0:00:00]} d5 {[%emt 0:00:07]} 2. e3 {[%emt 0:00:00]} Nf6 {[%emt 0:01:04]} 3. c4 {[%emt 0:00:00]} e6 {[%emt 0:04:48]} 4. Nc3 {[%emt 0:00:13]} dxc4 {[%emt 0:02:06]} 5. Bxc4 {[%emt 0:02:19]} a6 {[%emt 0:00:09]} 6. a4 {[%emt 0:01:57]} c5 {[%emt 0:00:13]} 7. d4 {[%emt 0:02:07]} Nc6 {[%emt 0:00:12]} 8. O-O {[%emt 0:01:18]} cxd4 {[%emt 0:09:38]} 9. exd4 {[%emt 0:00:03]} Be7 {[%emt 0:00:08]} 10. Bf4 {[%emt 0:11:55]} O-O {[%emt 0:00:28]} 11. Re1 {[%emt 0:01:01]} Nb4 {[%emt 0:03:35]} 12. Qb3 {[%emt 0:02:28] LiveBook: 6 Games D26: Queen's Gambit Accepted: 4 e3 e6 5 Bxc5 c5 sidelines} (12. Rc1 b6 13. Ne5 Bb7 14. Nxf7 Rxf7 15. Bxe6 Kf8 16. Be5 Bd6 17. Bxf7 Kxf7 18. Qb3+ Kf8 19. Bxd6+ Qxd6 {1-0 (44) Bacrot,E (2722)-Tan,J (2466) chess.com INT 2018}) 12... b6 {[%emt 0:02:20]} 13. Rad1 {[%emt 0:16:21]} Nbd5 $146 {[%emt 0:08:48]} ({Predecessor:} 13... Bb7 14. Ne5 Nbd5 15. Bg3 Rc8 {½-½ (15) Camp,I (1855)-Modi,K (1772) Coventry 2017}) 14. Nxd5 {[%emt 0:10:02]} exd5 {[%emt 0:01:24]} 15. Bd3 {[%emt 0:03:56]} Bg4 {[%emt 0:02:31]} 16. Bb1 {[%emt 0:00:01]} Bxf3 {[%emt 0:07:16]} 17. Qxf3 {[%emt 0:01:45]} Bb4 {[%emt 0:02:58]} 18. Re5 {[%emt 0:02:01]} Qd7 {[%emt 0:12:45]} 19. Bg5 {[%emt 0:12:10]} Ne4 {[%emt 0:02:42]} 20. Rxd5 {[%emt 0:13:11]} Qxd5 {[%emt 0:00:46]} 21. Bxe4 {[%emt 0:00:02]} Qxg5 {[%emt 0:00:01]} 22. Bxa8 {[%emt 0:00:01]} Rd8 {[%emt 0:00:52]} 23. g3 {[%emt 0:02:06]} a5 {[%emt 0:03:09]} 24. h4 {[%emt 0:01:22]} Qf6 {[%emt 0:04:09]} 25. Qxf6 {[%emt 0:01:19]} gxf6 {[%emt 0:00:01]} 26. Bc6 {[%emt 0:00:02]} f5 {[%emt 0:01:09]} 27. Kg2 {[%emt 0:01:13]} f4 {[%emt 0:00:17]} 28. g4 {[%emt 0:02:26]} Be7 {[%emt 0:01:08]} 29. d5 {[%emt 0:02:51]} Rd6 {[%emt 0:05:41]} 30. Rh1 {[%emt 0:00:02]} f3+ {[%emt 0:04:05]} 31. Kxf3 {[%emt 0:07:48]} Rf6+ {[%emt 0:00:05]} 32. Kg3 {[%emt 0:01:01]} Bd6+ {[%emt 0:02:32]} 33. Kg2 {[%emt 0:00:01]} Rf4 {[%emt 0:00:01]} 34. f3 {[%emt 0:01:15]} Rb4 {[%emt 0:02:01]} 35. Rb1 {[%emt 0:00:01]} Rb3 {[%emt 0:00:05]} 36. Bb5 {[%emt 0:00:26]} Be5 {[%emt 0:01:07]} 37. Bc4 {[%emt 0:01:14]} Rxb2+ {[%emt 0:00:07]} 38. Rxb2 {[%emt 0:00:00]} Bxb2 {[%emt 0:00:07]} 39. d6 {[%emt 0:01:21]} Be5 {[%emt 0:02:43]} 40. d7 {[%emt 0:00:00]} Bc7 {[%emt 0:00:00]} 41. f4 {[%emt 0:15:07]} Kf8 {[%emt 0:01:52]} 42. Kf3 $18 {[%emt 0:01:08]} Ke7 {[%emt 0:00:11]} 43. Ke4 {[%emt 0:03:19]} f6 {[%emt 0:03:18]} 44. Bb5 {[%emt 0:02:33]} Ke6 {[%emt 0:00:51]} 45. f5+ {[%emt 0:02:01]} Ke7 {[%emt 0:08:28]} 46. Kd5 {[%emt 0:02:41]} Bg3 {[%emt 0:02:11]} 47. g5 {[%emt 0:01:54]} Bxh4 {[%emt 0:01:01]} 48. g6 {[%emt 0:00:07]} hxg6 {[%emt 0:00:06]} 49. fxg6 {[%emt 0:00:02]} f5 {[%emt 0:00:06]} 50. d8=Q+ {[%emt 0:00:12]} 1-0